[Event "Titled Tuesday Blitz March 07 Early 2023"]
[White "Kowalczyk, Pawel"]
[Black "Fedoseev, Vladimir"]
[WhiteFideId "1130641"]
[BlackFideId "24130737"]
[WhiteElo "2324"]
[BlackElo "2752"]
[Result "0-1"]
[Round "03"]
[TimeControl "180+2"]
[Date "2023.03.07"]
[WhiteClock "0:00:01"]
[BlackClock "0:00:47"]

1. e4 {[%clk 0:03:00]}  c5 {[%clk 0:02:59]} 2. Ne2 {[%clk 0:03:00]}  d6 {[%clk 0:02:59]} 3. g3 {[%clk 0:03:00]}  f5 {[%clk 0:02:58]} 4. exf5 {[%clk 0:02:57]}  Bxf5 {[%clk 0:02:58]} 5. Bg2 {[%clk 0:02:58]}  Qd7 {[%clk 0:02:58]} 6. O-O {[%clk 0:02:54]}  Nc6 {[%clk 0:02:58]} 7. d4 {[%clk 0:02:54]}  cxd4 {[%clk 0:02:24]} 8. Nxd4 {[%clk 0:02:55]}  Bg4 {[%clk 0:02:21]} 9. Qd3 {[%clk 0:02:52]}  Nf6 {[%clk 0:02:21]} 10. Nc3 {[%clk 0:02:49]}  Bh3 {[%clk 0:02:18]} 11. Re1 {[%clk 0:02:40]}  Bxg2 {[%clk 0:02:17]} 12. Kxg2 {[%clk 0:02:41]}  e5 {[%clk 0:02:15]} 13. Nf5 {[%clk 0:02:31]}  O-O-O {[%clk 0:02:13]} 14. Bg5 {[%clk 0:02:21]}  d5 {[%clk 0:02:05]} 15. Bxf6 {[%clk 0:01:47]}  gxf6 {[%clk 0:02:06]} 16. Rad1 {[%clk 0:01:29]}  Bb4 {[%clk 0:01:53]} 17. Qf3 {[%clk 0:01:08]}  Bxc3 {[%clk 0:01:36]} 18. bxc3 {[%clk 0:01:09]}  Qe6 {[%clk 0:01:36]} 19. Ne3 {[%clk 0:01:06]}  Ne7 {[%clk 0:01:31]} 20. Rd2 {[%clk 0:00:55]}  Rd7 {[%clk 0:01:31]} 21. h4 {[%clk 0:00:49]}  Rhd8 {[%clk 0:01:29]} 22. Red1 {[%clk 0:00:45]}  f5 {[%clk 0:01:28]} 23. Re1 {[%clk 0:00:43]}  f4 {[%clk 0:01:21]} 24. Ng4 {[%clk 0:00:39]}  Ng6 {[%clk 0:01:02]} 25. h5 {[%clk 0:00:39]}  e4 {[%clk 0:01:02]} 26. Kg1 {[%clk 0:00:27]}  Ne5 {[%clk 0:01:02]} 27. Qxf4 {[%clk 0:00:09]}  Nxg4 {[%clk 0:01:02]} 28. f3 {[%clk 0:00:10]}  Nf6 {[%clk 0:01:01]} 29. c4 {[%clk 0:00:09]}  Nxh5 {[%clk 0:00:52]} 30. Qh4 {[%clk 0:00:07]}  Nxg3 {[%clk 0:00:51]} 31. cxd5 {[%clk 0:00:05]}  Qb6+ {[%clk 0:00:48]} 32. Kg2 {[%clk 0:00:05]}  Rg8 {[%clk 0:00:48]} 33. Kh2 {[%clk 0:00:02]}  Nf5 {[%clk 0:00:47]} 34. Qf4 {[%clk 0:00:02]}  Qg6 {[%clk 0:00:47]} 35. fxe4 {[%clk 0:00:01]}  Qh5+ {[%clk 0:00:47]} 0-1


[Site "https://www.chess.com"]

[Event "Titled Tuesday Blitz March 07 Early 2023"]
[White "Bortnyk, Olexandr"]
[Black "Matinian, Nikita"]
[WhiteFideId "14120828"]
[BlackFideId "24129100"]
[WhiteElo "2734"]
[BlackElo "2422"]
[Result "1-0"]
[Round "03"]
[TimeControl "180+2"]
[Date "2023.03.07"]
[WhiteClock "0:00:12"]
[BlackClock "0:00:07"]

1. d4 {[%clk 0:03:00]}  Nf6 {[%clk 0:02:59]} 2. Nc3 {[%clk 0:03:01]}  d5 {[%clk 0:02:59]} 3. Bf4 {[%clk 0:03:01]}  c6 {[%clk 0:02:59]} 4. e3 {[%clk 0:03:01]}  g6 {[%clk 0:02:59]} 5. h4 {[%clk 0:03:01]}  h5 {[%clk 0:02:59]} 6. Nf3 {[%clk 0:03:02]}  Bg4 {[%clk 0:02:55]} 7. Be2 {[%clk 0:03:01]}  Bxf3 {[%clk 0:02:56]} 8. Bxf3 {[%clk 0:03:01]}  Nbd7 {[%clk 0:02:54]} 9. Qe2 {[%clk 0:02:51]}  Qb6 {[%clk 0:02:48]} 10. O-O-O {[%clk 0:02:50]}  e6 {[%clk 0:02:48]} 11. a3 {[%clk 0:02:35]}  Qa5 {[%clk 0:02:38]} 12. Qd3 {[%clk 0:02:26]}  b5 {[%clk 0:02:37]} 13. Na2 {[%clk 0:02:10]}  Qb6 {[%clk 0:01:27]} 14. e4 {[%clk 0:01:59]}  a5 {[%clk 0:01:24]} 15. Rhe1 {[%clk 0:01:52]}  b4 {[%clk 0:01:18]} 16. a4 {[%clk 0:01:46]}  Be7 {[%clk 0:01:07]} 17. Kb1 {[%clk 0:01:39]}  Qa6 {[%clk 0:00:56]} 18. Qe3 {[%clk 0:01:25]}  dxe4 {[%clk 0:00:45]} 19. Bxe4 {[%clk 0:01:23]}  Nd5 {[%clk 0:00:46]} 20. Qf3 {[%clk 0:01:18]}  Rc8 {[%clk 0:00:44]} 21. Nc1 {[%clk 0:01:15]}  Qc4 {[%clk 0:00:29]} 22. Nb3 {[%clk 0:01:06]}  Qa6 {[%clk 0:00:26]} 23. Bxg6 {[%clk 0:00:56]}  fxg6 {[%clk 0:00:25]} 24. Rxe6 {[%clk 0:00:57]}  Rf8 {[%clk 0:00:23]} 25. g3 {[%clk 0:00:51]}  Nxf4 {[%clk 0:00:18]} 26. gxf4 {[%clk 0:00:48]}  Rf7 {[%clk 0:00:18]} 27. Rxg6 {[%clk 0:00:42]}  Nf6 {[%clk 0:00:18]} 28. Re1 {[%clk 0:00:41]}  Kd7 {[%clk 0:00:15]} 29. Qh3+ {[%clk 0:00:28]}  Kc7 {[%clk 0:00:15]} 30. Qe6 {[%clk 0:00:29]}  Rcf8 {[%clk 0:00:13]} 31. Rg5 {[%clk 0:00:29]}  Qc8 {[%clk 0:00:12]} 32. Qe5+ {[%clk 0:00:29]}  Bd6 {[%clk 0:00:12]} 33. Qxa5+ {[%clk 0:00:29]}  Kd7 {[%clk 0:00:08]} 34. Rg6 {[%clk 0:00:19]}  Nd5 {[%clk 0:00:07]} 35. Ree6 {[%clk 0:00:19]}  Rf6 {[%clk 0:00:08]} 36. f5 {[%clk 0:00:14]}  Rxg6 {[%clk 0:00:07]} 37. Rxg6 {[%clk 0:00:15]}  Rxf5 {[%clk 0:00:07]} 38. Rg7+ {[%clk 0:00:12]}  Ne7 {[%clk 0:00:07]} 39. Qxf5+ {[%clk 0:00:12]} 1-0


[Site "https://www.chess.com"]

[Event "Titled Tuesday Blitz March 07 Early 2023"]
[White "Solovchuk, Oleksiy"]
[Black "Oparin, Grigoriy"]
[WhiteFideId "14115220"]
[BlackFideId "24125890"]
[WhiteElo "2291"]
[BlackElo "2641"]
[Result "0-1"]
[Round "03"]
[TimeControl "180+2"]
[Date "2023.03.07"]
[WhiteClock "0:01:42"]
[BlackClock "0:02:30"]

1. c4 {[%clk 0:02:59]}  e5 {[%clk 0:02:59]} 2. Nc3 {[%clk 0:02:58]}  Bb4 {[%clk 0:03:00]} 3. Nd5 {[%clk 0:02:57]}  a5 {[%clk 0:03:00]} 4. a3 {[%clk 0:02:56]}  Be7 {[%clk 0:03:00]} 5. d4 {[%clk 0:02:55]}  exd4 {[%clk 0:03:00]} 6. Nxe7 {[%clk 0:02:54]}  Qxe7 {[%clk 0:03:00]} 7. Qxd4 {[%clk 0:02:54]}  Nf6 {[%clk 0:03:00]} 8. b3 {[%clk 0:02:53]}  Nc6 {[%clk 0:02:59]} 9. Qd3 {[%clk 0:02:53]}  O-O {[%clk 0:02:50]} 10. Bb2 {[%clk 0:02:53]}  Rd8 {[%clk 0:02:50]} 11. Qc3 {[%clk 0:02:44]}  d5 {[%clk 0:02:43]} 12. cxd5 {[%clk 0:02:43]}  Rxd5 {[%clk 0:02:44]} 13. e3 {[%clk 0:02:37]}  Rc5 {[%clk 0:02:41]} 14. Qd2 {[%clk 0:02:23]}  Bf5 {[%clk 0:02:33]} 15. Rc1 {[%clk 0:01:46]}  Rd8 {[%clk 0:02:32]} 16. Qe2 {[%clk 0:01:44]}  Bd3 {[%clk 0:02:31]} 17. Qf3 {[%clk 0:01:43]}  Rxc1+ {[%clk 0:02:29]} 18. Bxc1 {[%clk 0:01:43]}  Bxf1 {[%clk 0:02:30]} 19. Kxf1 {[%clk 0:01:42]}  Qc5 {[%clk 0:02:30]} 0-1


[Site "https://www.chess.com"]

[Event "Titled Tuesday Blitz March 07 Early 2023"]
[White "Csonka, Balazs"]
[Black "Shimanov, Aleksandr"]
[WhiteFideId "742910"]
[BlackFideId "4198603"]
[WhiteElo "2404"]
[BlackElo "2631"]
[Result "0-1"]
[Round "03"]
[TimeControl "180+2"]
[Date "2023.03.07"]
[WhiteClock "0:00:04"]
[BlackClock "0:00:34"]

1. d4 {[%clk 0:03:00]}  g6 {[%clk 0:02:57]} 2. e4 {[%clk 0:02:57]}  d6 {[%clk 0:02:56]} 3. c4 {[%clk 0:02:57]}  Bg7 {[%clk 0:02:55]} 4. Nc3 {[%clk 0:02:58]}  c5 {[%clk 0:02:55]} 5. d5 {[%clk 0:02:54]}  Bxc3+ {[%clk 0:02:55]} 6. bxc3 {[%clk 0:02:53]}  e5 {[%clk 0:02:55]} 7. Bd3 {[%clk 0:02:18]}  Qe7 {[%clk 0:02:52]} 8. Ne2 {[%clk 0:02:12]}  Nd7 {[%clk 0:02:50]} 9. O-O {[%clk 0:02:08]}  Kd8 {[%clk 0:02:49]} 10. a4 {[%clk 0:02:05]}  a5 {[%clk 0:02:48]} 11. Be3 {[%clk 0:01:44]}  Kc7 {[%clk 0:02:37]} 12. Qd2 {[%clk 0:01:38]}  f6 {[%clk 0:02:35]} 13. Rfb1 {[%clk 0:01:36]}  h5 {[%clk 0:02:19]} 14. h4 {[%clk 0:01:28]}  Qg7 {[%clk 0:02:16]} 15. Rb5 {[%clk 0:01:06]}  b6 {[%clk 0:02:16]} 16. Rab1 {[%clk 0:00:55]}  Ra6 {[%clk 0:02:13]} 17. Nd4 {[%clk 0:00:43]}  exd4 {[%clk 0:01:53]} 18. cxd4 {[%clk 0:00:44]}  Nh6 {[%clk 0:01:29]} 19. dxc5 {[%clk 0:00:36]}  dxc5 {[%clk 0:01:23]} 20. Bf4+ {[%clk 0:00:36]}  Kd8 {[%clk 0:01:23]} 21. Rxb6 {[%clk 0:00:26]}  Nxb6 {[%clk 0:01:18]} 22. Rxb6 {[%clk 0:00:26]}  Rxb6 {[%clk 0:01:19]} 23. Qxa5 {[%clk 0:00:25]}  Qb7 {[%clk 0:01:18]} 24. Qxc5 {[%clk 0:00:21]}  Ng4 {[%clk 0:01:07]} 25. g3 {[%clk 0:00:13]}  Ne5 {[%clk 0:01:04]} 26. Be2 {[%clk 0:00:11]}  Bg4 {[%clk 0:01:00]} 27. Bxg4 {[%clk 0:00:06]}  hxg4 {[%clk 0:01:01]} 28. a5 {[%clk 0:00:06]}  Rb1+ {[%clk 0:01:01]} 29. Kg2 {[%clk 0:00:06]}  Qc7 {[%clk 0:00:42]} 30. Qd4 {[%clk 0:00:05]}  Re8 {[%clk 0:00:40]} 31. c5 {[%clk 0:00:05]}  Qxa5 {[%clk 0:00:38]} 32. c6 {[%clk 0:00:04]}  Qb5 {[%clk 0:00:34]} 0-1


[Site "https://www.chess.com"]

[Event "Titled Tuesday Blitz March 07 Early 2023"]
[White "Starozhilov, Leonid"]
[Black "Kamsky, Gata"]
[WhiteFideId "14106752"]
[BlackFideId "2000024"]
[WhiteElo "2402"]
[BlackElo "2666"]
[Result "1/2-1/2"]
[Round "03"]
[TimeControl "180+2"]
[Date "2023.03.07"]
[WhiteClock "0:00:21"]
[BlackClock "0:00:27"]

1. e4 {[%clk 0:03:00]}  e5 {[%clk 0:02:57]} 2. Nc3 {[%clk 0:02:59]}  Nf6 {[%clk 0:02:54]} 3. Nf3 {[%clk 0:02:58]}  Nc6 {[%clk 0:02:53]} 4. Bb5 {[%clk 0:02:56]}  Bb4 {[%clk 0:02:50]} 5. Bxc6 {[%clk 0:02:55]}  dxc6 {[%clk 0:02:48]} 6. d3 {[%clk 0:02:56]}  Nd7 {[%clk 0:02:43]} 7. Be3 {[%clk 0:02:54]}  O-O {[%clk 0:02:42]} 8. O-O {[%clk 0:02:53]}  Bd6 {[%clk 0:02:32]} 9. h3 {[%clk 0:02:37]}  c5 {[%clk 0:02:29]} 10. Nd2 {[%clk 0:02:35]}  Nb8 {[%clk 0:02:26]} 11. Nc4 {[%clk 0:02:34]}  Nc6 {[%clk 0:02:25]} 12. Nxd6 {[%clk 0:02:31]}  cxd6 {[%clk 0:02:25]} 13. f4 {[%clk 0:02:31]}  exf4 {[%clk 0:02:09]} 14. Bxf4 {[%clk 0:02:30]}  Be6 {[%clk 0:02:08]} 15. Qd2 {[%clk 0:02:29]}  a6 {[%clk 0:02:00]} 16. Rae1 {[%clk 0:02:27]}  Qd7 {[%clk 0:01:59]} 17. Re3 {[%clk 0:02:10]}  f6 {[%clk 0:01:58]} 18. Ref3 {[%clk 0:02:02]}  Rf7 {[%clk 0:01:56]} 19. R3f2 {[%clk 0:01:58]}  Raf8 {[%clk 0:01:52]} 20. Bg3 {[%clk 0:01:55]}  b5 {[%clk 0:01:51]} 21. b3 {[%clk 0:01:55]}  Nd4 {[%clk 0:01:45]} 22. Ne2 {[%clk 0:01:54]}  Nxe2+ {[%clk 0:01:45]} 23. Qxe2 {[%clk 0:01:54]}  d5 {[%clk 0:01:43]} 24. exd5 {[%clk 0:01:44]}  Qxd5 {[%clk 0:01:38]} 25. Qf3 {[%clk 0:01:41]}  Qxf3 {[%clk 0:01:36]} 26. Rxf3 {[%clk 0:01:41]}  Rd7 {[%clk 0:01:34]} 27. Re3 {[%clk 0:01:41]}  Kf7 {[%clk 0:01:31]} 28. Rfe1 {[%clk 0:01:41]}  Bf5 {[%clk 0:01:29]} 29. Bf2 {[%clk 0:01:26]}  Rc8 {[%clk 0:01:28]} 30. Rf3 {[%clk 0:01:10]}  Bg6 {[%clk 0:01:26]} 31. Rf4 {[%clk 0:01:09]}  h5 {[%clk 0:01:23]} 32. a4 {[%clk 0:00:57]}  c4 {[%clk 0:01:17]} 33. dxc4 {[%clk 0:00:50]}  bxc4 {[%clk 0:01:10]} 34. Rxc4 {[%clk 0:00:50]}  Rxc4 {[%clk 0:01:09]} 35. bxc4 {[%clk 0:00:51]}  Bxc2 {[%clk 0:01:08]} 36. a5 {[%clk 0:00:52]}  Bd3 {[%clk 0:00:59]} 37. Rd1 {[%clk 0:00:46]}  Ke6 {[%clk 0:00:58]} 38. c5 {[%clk 0:00:45]}  Bb5 {[%clk 0:00:56]} 39. Rxd7 {[%clk 0:00:44]}  Bxd7 {[%clk 0:00:56]} 40. h4 {[%clk 0:00:44]}  Kd5 {[%clk 0:00:55]} 41. c6 {[%clk 0:00:37]}  Bxc6 {[%clk 0:00:54]} 42. Bb6 {[%clk 0:00:37]}  Ke4 {[%clk 0:00:53]} 43. Kf2 {[%clk 0:00:33]}  Kf4 {[%clk 0:00:52]} 44. g3+ {[%clk 0:00:34]}  Kg4 {[%clk 0:00:52]} 45. Bd4 {[%clk 0:00:33]}  Kf5 {[%clk 0:00:51]} 46. Bb2 {[%clk 0:00:30]}  g5 {[%clk 0:00:51]} 47. Bc3 {[%clk 0:00:29]}  Ke6 {[%clk 0:00:38]} 48. Bd2 {[%clk 0:00:27]}  Kf5 {[%clk 0:00:36]} 49. Bc3 {[%clk 0:00:26]}  Ke6 {[%clk 0:00:34]} 50. Bd2 {[%clk 0:00:24]}  gxh4 {[%clk 0:00:32]} 51. gxh4 {[%clk 0:00:24]}  f5 {[%clk 0:00:32]} 52. Ke3 {[%clk 0:00:22]}  Ba4 {[%clk 0:00:27]} 53. Kf4 {[%clk 0:00:21]}  Bd1 {[%clk 0:00:27]} 54. Be1 {[%clk 0:00:21]}  Bg4 {[%clk 0:00:26]} 55. Bf2 {[%clk 0:00:20]}  Kd5 {[%clk 0:00:27]} 56. Bb6 {[%clk 0:00:20]}  Kc4 {[%clk 0:00:27]} 57. Bd8 {[%clk 0:00:20]}  Kb5 {[%clk 0:00:26]} 58. Bb6 {[%clk 0:00:20]}  Kc4 {[%clk 0:00:26]} 59. Kg3 {[%clk 0:00:20]}  Kb5 {[%clk 0:00:26]} 60. Bd8 {[%clk 0:00:20]}  Kc4 {[%clk 0:00:26]} 61. Bb6 {[%clk 0:00:20]}  Kb5 {[%clk 0:00:27]} 62. Bd8 {[%clk 0:00:21]}  Kc4 {[%clk 0:00:27]} 63. Bb6 {[%clk 0:00:21]} 1/2-1/2


[Site "https://www.chess.com"]

[Event "Titled Tuesday Blitz March 07 Early 2023"]
[White "Steinberg, Nitzan"]
[Black "Kozak, Antoni"]
[WhiteFideId "2801795"]
[BlackFideId "21832030"]
[WhiteElo "2486"]
[BlackElo "2470"]
[Result "1-0"]
[Round "03"]
[TimeControl "180+2"]
[Date "2023.03.07"]
[WhiteClock "0:00:16"]
[BlackClock "0:00:06"]

1. d4 {[%clk 0:03:00]}  Nf6 {[%clk 0:02:58]} 2. Nf3 {[%clk 0:03:01]}  d5 {[%clk 0:02:58]} 3. Bf4 {[%clk 0:03:01]}  c6 {[%clk 0:02:57]} 4. e3 {[%clk 0:02:59]}  Bf5 {[%clk 0:02:55]} 5. h3 {[%clk 0:03:00]}  e6 {[%clk 0:02:55]} 6. Nbd2 {[%clk 0:02:56]}  Bd6 {[%clk 0:02:55]} 7. Bxd6 {[%clk 0:02:56]}  Qxd6 {[%clk 0:02:56]} 8. c4 {[%clk 0:02:57]}  O-O {[%clk 0:02:56]} 9. Be2 {[%clk 0:02:57]}  Nbd7 {[%clk 0:02:54]} 10. O-O {[%clk 0:02:58]}  h6 {[%clk 0:02:53]} 11. a3 {[%clk 0:02:58]}  Rfe8 {[%clk 0:02:54]} 12. Rc1 {[%clk 0:02:57]}  Rad8 {[%clk 0:02:53]} 13. Re1 {[%clk 0:02:57]}  Qb8 {[%clk 0:02:52]} 14. b4 {[%clk 0:02:54]}  e5 {[%clk 0:02:53]} 15. cxd5 {[%clk 0:02:54]}  cxd5 {[%clk 0:02:49]} 16. dxe5 {[%clk 0:02:54]}  Nxe5 {[%clk 0:02:49]} 17. Nxe5 {[%clk 0:02:54]}  Qxe5 {[%clk 0:02:50]} 18. Nf3 {[%clk 0:02:51]}  Qd6 {[%clk 0:02:49]} 19. Nd4 {[%clk 0:02:47]}  Be4 {[%clk 0:02:49]} 20. Bf1 {[%clk 0:02:33]}  Rc8 {[%clk 0:02:44]} 21. Qb3 {[%clk 0:02:31]}  h5 {[%clk 0:02:34]} 22. Qb2 {[%clk 0:02:31]}  Qe5 {[%clk 0:02:30]} 23. Rxc8 {[%clk 0:02:30]}  Rxc8 {[%clk 0:02:28]} 24. Rc1 {[%clk 0:02:30]}  Rc7 {[%clk 0:02:19]} 25. Rc3 {[%clk 0:02:27]}  Ne8 {[%clk 0:02:05]} 26. Qc1 {[%clk 0:02:20]}  a6 {[%clk 0:01:41]} 27. h4 {[%clk 0:02:13]}  g6 {[%clk 0:01:39]} 28. Be2 {[%clk 0:02:04]}  Rxc3 {[%clk 0:01:37]} 29. Qxc3 {[%clk 0:02:04]}  Qc7 {[%clk 0:01:38]} 30. Qxc7 {[%clk 0:02:04]}  Nxc7 {[%clk 0:01:39]} 31. Nb3 {[%clk 0:02:01]}  b6 {[%clk 0:01:29]} 32. f3 {[%clk 0:01:52]}  Bb1 {[%clk 0:01:26]} 33. Kf2 {[%clk 0:01:52]}  Kf8 {[%clk 0:01:25]} 34. Ke1 {[%clk 0:01:49]}  Ke7 {[%clk 0:01:23]} 35. Kd2 {[%clk 0:01:50]}  Kd6 {[%clk 0:01:23]} 36. g3 {[%clk 0:01:35]}  Ba2 {[%clk 0:01:20]} 37. Nd4 {[%clk 0:01:34]}  Bc4 {[%clk 0:01:21]} 38. Bd1 {[%clk 0:01:30]}  Ne8 {[%clk 0:01:00]} 39. g4 {[%clk 0:01:30]}  Nf6 {[%clk 0:00:59]} 40. g5 {[%clk 0:01:26]}  Nd7 {[%clk 0:00:59]} 41. f4 {[%clk 0:01:26]}  Nf8 {[%clk 0:00:45]} 42. Nf3 {[%clk 0:01:26]}  Nd7 {[%clk 0:00:40]} 43. Bc2 {[%clk 0:01:26]}  Ke6 {[%clk 0:00:31]} 44. f5+ {[%clk 0:01:21]}  gxf5 {[%clk 0:00:31]} 45. Nd4+ {[%clk 0:01:22]}  Ke5 {[%clk 0:00:29]} 46. Nxf5 {[%clk 0:01:22]}  Nf8 {[%clk 0:00:24]} 47. Ne7 {[%clk 0:01:16]}  Kd6 {[%clk 0:00:20]} 48. Nf5+ {[%clk 0:01:10]}  Ke5 {[%clk 0:00:18]} 49. Nh6 {[%clk 0:01:08]}  d4 {[%clk 0:00:15]} 50. exd4+ {[%clk 0:00:54]}  Kxd4 {[%clk 0:00:16]} 51. Nf5+ {[%clk 0:00:54]}  Ke5 {[%clk 0:00:16]} 52. Ne3 {[%clk 0:00:47]}  Be6 {[%clk 0:00:15]} 53. Bd3 {[%clk 0:00:45]}  a5 {[%clk 0:00:16]} 54. bxa5 {[%clk 0:00:38]}  bxa5 {[%clk 0:00:17]} 55. Nc4+ {[%clk 0:00:26]}  Bxc4 {[%clk 0:00:16]} 56. Bxc4 {[%clk 0:00:27]}  f6 {[%clk 0:00:17]} 57. gxf6 {[%clk 0:00:27]}  Kxf6 {[%clk 0:00:17]} 58. Be2 {[%clk 0:00:28]}  Ng6 {[%clk 0:00:12]} 59. Bxh5 {[%clk 0:00:27]}  Nxh4 {[%clk 0:00:13]} 60. Kc3 {[%clk 0:00:27]}  Ke5 {[%clk 0:00:14]} 61. Kc4 {[%clk 0:00:27]}  Kd6 {[%clk 0:00:15]} 62. Kb5 {[%clk 0:00:27]}  Nf5 {[%clk 0:00:14]} 63. Kxa5 {[%clk 0:00:27]}  Nd4 {[%clk 0:00:14]} 64. Kb6 {[%clk 0:00:27]}  Nc2 {[%clk 0:00:08]} 65. a4 {[%clk 0:00:27]}  Ne3 {[%clk 0:00:09]} 66. Bf7 {[%clk 0:00:17]}  Ke7 {[%clk 0:00:06]} 67. a5 {[%clk 0:00:16]}  Kxf7 {[%clk 0:00:05]} 68. a6 {[%clk 0:00:16]}  Nc4+ {[%clk 0:00:06]} 69. Kc5 {[%clk 0:00:16]} 1-0


[Site "https://www.chess.com"]

[Event "Titled Tuesday Blitz March 07 Early 2023"]
[White "Prokofiev, Valentyn"]
[Black "Bluebaum, Matthias"]
[WhiteFideId "14160161"]
[BlackFideId "24651516"]
[WhiteElo "2260"]
[BlackElo "2638"]
[Result "0-1"]
[Round "03"]
[TimeControl "180+2"]
[Date "2023.03.07"]
[WhiteClock "0:00:03"]
[BlackClock "0:00:06"]

1. d4 {[%clk 0:03:00]}  d5 {[%clk 0:02:59]} 2. Nf3 {[%clk 0:03:00]}  e6 {[%clk 0:02:59]} 3. c4 {[%clk 0:03:01]}  Nf6 {[%clk 0:02:59]} 4. e3 {[%clk 0:02:59]}  a6 {[%clk 0:02:59]} 5. b3 {[%clk 0:02:57]}  c5 {[%clk 0:02:59]} 6. Bd3 {[%clk 0:02:47]}  cxd4 {[%clk 0:02:55]} 7. exd4 {[%clk 0:02:48]}  Bb4+ {[%clk 0:02:54]} 8. Bd2 {[%clk 0:02:47]}  Bxd2+ {[%clk 0:02:54]} 9. Nbxd2 {[%clk 0:02:45]}  O-O {[%clk 0:02:54]} 10. O-O {[%clk 0:02:43]}  b6 {[%clk 0:02:54]} 11. Rc1 {[%clk 0:02:42]}  dxc4 {[%clk 0:02:52]} 12. bxc4 {[%clk 0:02:40]}  Bb7 {[%clk 0:02:53]} 13. Qe2 {[%clk 0:02:29]}  Nbd7 {[%clk 0:02:50]} 14. Rfd1 {[%clk 0:02:24]}  Qc7 {[%clk 0:02:50]} 15. a4 {[%clk 0:02:21]}  Rfd8 {[%clk 0:02:47]} 16. a5 {[%clk 0:02:15]}  bxa5 {[%clk 0:02:44]} 17. c5 {[%clk 0:02:16]}  Bd5 {[%clk 0:02:29]} 18. Bxa6 {[%clk 0:01:56]}  Nb8 {[%clk 0:02:29]} 19. Bb5 {[%clk 0:01:52]}  Nc6 {[%clk 0:02:28]} 20. Nc4 {[%clk 0:01:36]}  Bxc4 {[%clk 0:02:00]} 21. Qxc4 {[%clk 0:01:28]}  h6 {[%clk 0:01:50]} 22. Qa4 {[%clk 0:01:17]}  Ne7 {[%clk 0:01:29]} 23. Ne5 {[%clk 0:01:14]}  Nfd5 {[%clk 0:01:18]} 24. Bd3 {[%clk 0:01:01]}  Rab8 {[%clk 0:01:10]} 25. Be4 {[%clk 0:00:42]}  Rb4 {[%clk 0:01:10]} 26. Qa3 {[%clk 0:00:42]}  Nf6 {[%clk 0:01:09]} 27. Qe3 {[%clk 0:00:37]}  a4 {[%clk 0:00:52]} 28. Bb1 {[%clk 0:00:31]}  Nc6 {[%clk 0:00:47]} 29. Nc4 {[%clk 0:00:27]}  Rb3 {[%clk 0:00:34]} 30. Qe1 {[%clk 0:00:08]}  Rxd4 {[%clk 0:00:32]} 31. Nd6 {[%clk 0:00:06]}  Rxd1 {[%clk 0:00:29]} 32. Rxd1 {[%clk 0:00:06]}  a3 {[%clk 0:00:28]} 33. Ba2 {[%clk 0:00:07]}  Rb2 {[%clk 0:00:27]} 34. Bxe6 {[%clk 0:00:06]}  fxe6 {[%clk 0:00:15]} 35. Qxe6+ {[%clk 0:00:07]}  Kh7 {[%clk 0:00:15]} 36. Qf5+ {[%clk 0:00:07]}  Kh8 {[%clk 0:00:16]} 37. Qg6 {[%clk 0:00:05]}  Ne5 {[%clk 0:00:14]} 38. Qf5 {[%clk 0:00:05]}  a2 {[%clk 0:00:03]} 39. Qxe5 {[%clk 0:00:03]}  Rb1 {[%clk 0:00:04]} 40. Rf1 {[%clk 0:00:03]}  Qa7 {[%clk 0:00:03]} 41. Nb5 {[%clk 0:00:01]}  Rxf1+ {[%clk 0:00:04]} 42. Kxf1 {[%clk 0:00:01]}  a1=Q+ {[%clk 0:00:04]} 43. Ke2 {[%clk 0:00:02]}  Qxe5+ {[%clk 0:00:05]} 44. Kf3 {[%clk 0:00:03]}  Qaxc5 {[%clk 0:00:06]} 0-1


[Site "https://www.chess.com"]

[Event "Titled Tuesday Blitz March 07 Early 2023"]
[White "Dehtiarov, Roman"]
[Black "Sjugirov, Sanan"]
[WhiteFideId "14186640"]
[BlackFideId "4189302"]
[WhiteElo "2162"]
[BlackElo "2569"]
[Result "0-1"]
[Round "03"]
[TimeControl "180+2"]
[Date "2023.03.07"]
[WhiteClock "0:00:02"]
[BlackClock "0:00:03"]

1. e4 {[%clk 0:02:58]}  c5 {[%clk 0:03:00]} 2. Nc3 {[%clk 0:02:58]}  Nc6 {[%clk 0:02:59]} 3. f4 {[%clk 0:02:58]}  e6 {[%clk 0:02:58]} 4. Nf3 {[%clk 0:02:59]}  d6 {[%clk 0:02:44]} 5. Bb5 {[%clk 0:02:55]}  Bd7 {[%clk 0:02:43]} 6. O-O {[%clk 0:02:55]}  a6 {[%clk 0:02:43]} 7. Bxc6 {[%clk 0:02:55]}  Bxc6 {[%clk 0:02:44]} 8. d3 {[%clk 0:02:56]}  Nf6 {[%clk 0:02:43]} 9. Qe1 {[%clk 0:02:56]}  b5 {[%clk 0:02:37]} 10. Be3 {[%clk 0:02:54]}  Be7 {[%clk 0:02:22]} 11. h3 {[%clk 0:02:53]}  d5 {[%clk 0:02:15]} 12. e5 {[%clk 0:02:52]}  d4 {[%clk 0:02:04]} 13. exf6 {[%clk 0:02:52]}  gxf6 {[%clk 0:02:04]} 14. f5 {[%clk 0:02:35]}  dxe3 {[%clk 0:01:48]} 15. fxe6 {[%clk 0:02:29]}  fxe6 {[%clk 0:01:49]} 16. Qxe3 {[%clk 0:02:29]}  Qd7 {[%clk 0:01:46]} 17. Ne4 {[%clk 0:02:27]}  Qd5 {[%clk 0:01:33]} 18. Rae1 {[%clk 0:02:18]}  e5 {[%clk 0:01:24]} 19. Nh4 {[%clk 0:02:09]}  O-O-O {[%clk 0:00:45]} 20. Nf5 {[%clk 0:02:02]}  Bf8 {[%clk 0:00:44]} 21. b3 {[%clk 0:01:53]}  Rg8 {[%clk 0:00:42]} 22. Rf2 {[%clk 0:01:52]}  Rg6 {[%clk 0:00:23]} 23. Rd1 {[%clk 0:01:34]}  c4 {[%clk 0:00:17]} 24. bxc4 {[%clk 0:01:13]}  bxc4 {[%clk 0:00:17]} 25. Rb1 {[%clk 0:00:55]}  Qa5 {[%clk 0:00:04]} 26. Qa7 {[%clk 0:00:37]}  Qc7 {[%clk 0:00:05]} 27. Qxa6+ {[%clk 0:00:31]}  Bb7 {[%clk 0:00:05]} 28. Qe6+ {[%clk 0:00:29]}  Kb8 {[%clk 0:00:04]} 29. c3 {[%clk 0:00:15]}  Ba3 {[%clk 0:00:03]} 30. Qxc4 {[%clk 0:00:05]}  Qxc4 {[%clk 0:00:03]} 31. dxc4 {[%clk 0:00:06]}  Kc7 {[%clk 0:00:03]} 32. Nd2 {[%clk 0:00:04]}  Bc5 {[%clk 0:00:03]} 33. Nf3 {[%clk 0:00:02]}  Bxf3 {[%clk 0:00:03]} 0-1


[Site "https://www.chess.com"]

[Event "Titled Tuesday Blitz March 07 Early 2023"]
[White "Mitrabha, Guha"]
[Black "Odegov, Artem"]
[WhiteFideId "5057000"]
[BlackFideId "34183644"]
[WhiteElo "2507"]
[BlackElo "2300"]
[Result "1-0"]
[Round "03"]
[TimeControl "180+2"]
[Date "2023.03.07"]
[WhiteClock "0:02:45"]
[BlackClock "0:02:23"]

1. d4 {[%clk 0:03:00]}  d5 {[%clk 0:02:59]} 2. Bf4 {[%clk 0:03:00]}  c5 {[%clk 0:02:59]} 3. e3 {[%clk 0:03:00]}  Nc6 {[%clk 0:02:59]} 4. Nc3 {[%clk 0:03:00]}  a6 {[%clk 0:02:42]} 5. Nf3 {[%clk 0:02:58]}  Nf6 {[%clk 0:02:41]} 6. dxc5 {[%clk 0:02:55]}  Bf5 {[%clk 0:02:36]} 7. Bd3 {[%clk 0:02:52]}  g6 {[%clk 0:02:33]} 8. O-O {[%clk 0:02:48]}  Qa5 {[%clk 0:02:27]} 9. Bxf5 {[%clk 0:02:45]}  gxf5 {[%clk 0:02:23]} 10. Nxd5 {[%clk 0:02:45]}  Qxc5 {[%clk 0:02:23]} 1-0


[Site "https://www.chess.com"]